fUSD/lending_fUSD_20240608
["ID","MTS","AMOUNT","RATE_DAILY","PERIOD"]
[328815074,1717827409517,-2000.0,0.00032877,30]
[328815075,1717827409569,-2000.0,0.00032877,30]
[328815076,1717827409620,-2000.0,0.00032877,30]
[328815077,1717827409670,-2000.0,0.00032877,30]
[328815078,1717827409723,-2000.0,0.00032877,30]
[328815079,1717827409776,-2000.0,0.00032877,30]
[328815080,1717827409826,-2000.0,0.00032877,30]
[328815081,1717827409879,-2000.0,0.00032877,30]
[328815082,1717827409931,-2000.0,0.00032877,30]
[328815083,1717827409984,-2000.0,0.00032877,30]
[328815084,1717827410036,-2000.0,0.00032877,30]
[328815085,1717827410090,-2000.0,0.00032877,30]
[328815086,1717827410141,-2000.0,0.00032877,30]
[328815087,1717827410192,-2000.0,0.00032877,30]
[328815088,1717827410242,-2000.0,0.00032877,30]
[328815089,1717827410295,-2000.0,0.00032877,30]
[328815090,1717827410350,-2000.0,0.00032877,30]
[328815091,1717827410592,-2000.0,0.00032877,30]
[328815092,1717827410640,-2000.0,0.00032877,30]
[328815093,1717827410690,-2000.0,0.00032877,30]
[328815094,1717827410737,-2000.0,0.00032877,30]
[328815095,1717827410785,-2000.0,0.00032877,30]
[328815096,1717827410832,-2000.0,0.00032877,30]
[328815097,1717827410883,-2000.0,0.00032877,30]
[328815098,1717827410935,-2000.0,0.00032877,30]
[328815099,1717827410981,-2000.0,0.00032877,30]
[328815100,1717827411032,-2000.0,0.00032877,30]
[328815101,1717827411080,-571.366,0.00032877,30]
[328815102,1717827411128,-13247.74670601,0.000329,30]
[328815103,1717827411177,-24433.98410544,0.000329,30]
[328815104,1717827411227,-166.78132412,0.00033,30]
[328815105,1717827411279,-10000.0,0.00033,30]
[328815106,1717827411334,-900.0,0.00033,34]
[328815107,1717827411382,-5000.00307831,0.00033,30]
[328815108,1717827411431,-900.0,0.00033,34]
[328815109,1717827411493,-500.0,0.00033118,30]
[328815110,1717827411552,-2146.51871928,0.0003327,30]
[328815111,1717827411602,-500.0,0.00033392,30]
[328815112,1717827411651,-1122.296693,0.000335,30]
[328815113,1717827411701,-500.0,0.00033665,30]
[328815114,1717827411751,-311.90076979,0.00033811,40]
[328815115,1717827411801,-1731.56786808,0.00033811,40]
[328815116,1717827411851,-1557.10817141,0.00033811,40]
[328815117,1717827411900,-1998.80693661,0.00033811,40]
[328815118,1717827411952,-5000.0,0.00033811,40]
[328815119,1717827412003,-1029.62557973,0.00033811,40]
[328815120,1717827412052,-469.55602544,0.00033811,40]
[328815121,1717827412103,-150.0,0.00034166,120]
[328815122,1717827412158,-1068.01431228,0.000349,30]
[328815123,1717827412220,-5502.37005354,0.00035,30]
[328815124,1717827412280,-3994.56075829,0.00035,30]
[328815125,1717827412340,-1845.10965136,0.00035,30]
[328815126,1717827412389,-10000.0,0.00035,30]
[328815127,1717827412442,-152.03737151,0.00035,120]
[328815128,1717827412493,-761.65276675,0.00035,120]
[328815129,1717827412545,-200.15062648,0.00035,30]
[328815130,1717827412605,-400.0,0.00035,30]
[328815131,1717827412675,-450.0,0.0003502,30]
[328815132,1717827412730,-150.0,0.00035262,120]
[328815133,1717827412793,-150.0,0.00035598,120]
[328815134,1717827412851,-201.29937112,0.000358,30]
[328815135,1717827412907,-237.04028479,0.000365,30]
[328815136,1717827412969,-500000.0,0.000365,30]
[328815137,1717827413022,-311.25797504,0.00037,120]
[328815138,1717827413092,-154.33657476,0.00037,30]
[328815139,1717827413149,-150.0,0.00037025,120]
[328815140,1717827413203,-10000.0,0.000375,30]
[328815141,1717827413256,-182.9,0.00037529,30]
[328815142,1717827413307,-150.0,0.00037605,120]
[328815143,1717827413358,-5000.0,0.000379,30]
[328815144,1717827413417,-250.00000016,0.00037987,31]
[328815145,1717827413473,-150.0,0.0003799,120]
[328815146,1717827413529,-2000.0,0.00038,30]
[328815147,1717827413581,-353.26630464,0.00038,30]
[328815148,1717827413633,-4001.46862459,0.00038,120]
[328815149,1717827413684,-180.67458253,0.00038,120]
[328815150,1717827413736,-282.0,0.00038,60]
[328815151,1717827413786,-1018.0,0.0003827,30]
[328815152,1717827413835,-16000.0,0.000383,92]
[328815153,1717827413888,-1466.00586284,0.000384,33]
[328815154,1717827413939,-171.83985805,0.000384,33]
[328815155,1717827413990,-450.0,0.0003874,30]
[328815156,1717827414041,-1269.63841883,0.000389,30]
[328815157,1717827414092,-3000.0,0.00039,120]
[328815158,1717827414150,-4682.18872965,0.00039,30]
[328815159,1717827414211,-500000.0,0.000398,30]
[328815160,1717827414272,-2199.99999901,0.00039876,31]
[328815161,1717827414323,-50000.0,0.00039887,30]
[328815162,1717827414371,-10000.0,0.000399,30]
[328815163,1717827414422,-663.32528051,0.0003998,30]
[328815164,1717827414486,-675.2837366,0.0003998,30]
[328815165,1717827414557,-50000.0,0.0004,30]
[328815166,1717827414609,-278.22366864,0.0004,120]
[328815167,1717827414667,-2000.0,0.0004,80]
[328815168,1717827414719,-2000.0,0.0004,80]
[328815169,1717827414770,-29012.08206596,0.0004,30]
[328815170,1717827414820,-1040.86285845,0.0004,32]
[328815171,1717827414873,-33004.22107693,0.0004,30]
[328815172,1717827414922,-40319.97599435,0.0004,30]
[328815173,1717827414973,-217.46678995,0.0004,120]
[328815174,1717827415024,-1470.31609846,0.0004,30]
[328815175,1717827415074,-35966.0,0.0004,60]
[328815176,1717827415125,-293.99021182,0.0004,30]
[328815177,1717827415189,-339.0,0.0004,60]
[328815178,1717827415251,-300.0,0.0004,30]
[328815179,1717827415313,-500.0,0.0004,30]
[328815180,1717827415375,-500.0,0.0004,30]
[328815181,1717827415427,-336.61742528,0.0004,30]
[328815182,1717827415480,-500.0,0.0004,30]
[328815183,1717827415531,-500.0,0.0004,30]
[328815184,1717827415580,-500.0,0.0004,30]
[328815185,1717827415628,-500.0,0.0004,30]
[328815186,1717827415676,-500.0,0.0004,30]
[328815187,1717827415726,-500.0,0.0004,30]
[328815188,1717827415778,-8528.70733551,0.0004,120]
[328815189,1717827415831,-300.0,0.0004,120]
[328815190,1717827416048,-35875.8657,0.0004,60]
[328815191,1717827416102,-21026.0,0.0004,38]
[328815192,1717827416154,-1000.0,0.0004,120]
[328815193,1717827416204,-399.60566849,0.0004,30]
[328815194,1717827416255,-5844.20684323,0.0004,40]
[328815195,1717827416320,-174.64205241,0.0004,30]
[328815196,1717827416370,-357.0,0.0004,60]
[328815197,1717827416420,-437795.55197286,0.0004,40]
[328815198,1717828052850,-338.34404605,0.000137,2]
[328815199,1717828052872,-404.27802441,0.00013701,2]
[328815200,1717828052894,-885.82814768,0.00013701,2]
[328815201,1717828052916,-155.0,0.00013702,2]
[328815202,1717828052938,-567.65138593,0.00013703,2]
[328815203,1717828052960,-155.0,0.00013704,2]
[328815204,1717828052983,-1795.39402106,0.00013704,2]
[328815205,1717828053004,-536.19769862,0.00013705,2]
[328815206,1717828053026,-304.18938168,0.00013705,2]
[328815207,1717828053047,-167.99,0.00013722,2]
[328815208,1717828053070,-150.0,0.000138,2]
[328815209,1717828053092,-150.0,0.00013899,2]
[328815210,1717828053114,-165.57082688,0.000139,2]
[328815211,1717828053139,-158.44323915,0.000139,2]
[328815212,1717828053162,-1140.29353516,0.000139,2]
[328815213,1717828053183,-202.7905,0.000139,2]
[328815214,1717828053204,-313.11538181,0.00013998,2]
[328815215,1717828053226,-160.25586256,0.00013998,2]
[328815216,1717828053248,-155.4132688,0.00013998,2]
[328815217,1717828053269,-203.39535456,0.00013998,2]
[328815218,1717828053290,-155.64006224,0.00013998,2]
[328815219,1717828053311,-156.70126362,0.00013998,2]
[328815220,1717828053332,-212.10857993,0.00013998,2]
[328815221,1717828053354,-446.8178927,0.00013998,2]
[328815222,1717828053376,-155.12269629,0.00013998,2]
[328815223,1717828053397,-40.03629506,0.00013998,2]
[328815226,1717828149781,-885.82814768,0.00013598,2]
[328815227,1717828149803,-304.18938168,0.00013598,2]
[328815228,1717828149825,-95.25890764,0.00013599,2]
[328815230,1717828171231,-215.00121933,0.00013599,2]
[328815231,1717828171254,-295.74637207,0.00013697,2]
[328815232,1717828171277,-1795.39402106,0.00013697,2]
[328815233,1717828171300,-211.86630423,0.00013697,2]
[328815234,1717828172497,-192.41172018,0.00013697,2]
[328815235,1717828172517,-680.44227015,0.00013698,2]
[328815236,1717828172538,-150.0,0.00013699,2]
[328815237,1717828172559,-1210.56699968,0.00013899,2]
[328815238,1717828172580,-731.96750999,0.00013899,2]
[328815249,1717828232520,-508.47198714,0.00013897,2]
[328815250,1717828232533,-1440.43885638,0.00013897,2]
[328815251,1717828232898,-8495.743034,0.00013897,2]
[328815271,1717828238326,-393.30673332,0.00013897,2]
[328815278,1717828238490,-2567.61939197,0.00013897,2]
[328815279,1717828238500,-885.82814768,0.00013897,2]
[328815280,1717828238511,-654.808591,0.00013897,2]
[328815308,1717828241778,-2923.15264686,0.00013897,2]
[328815309,1717828241790,-1868.31753695,0.00013897,2]
[328815311,1717828245179,-1795.39402106,0.00013896,2]
[328815312,1717828245189,-3407.43596466,0.00013897,2]
[328815313,1717828245202,-2305.10143182,0.00013897,2]
[328815316,1717828245360,-1455.0,0.00013897,2]
[328815317,1717828245543,-6943.05146521,0.00013897,2]
[328815318,1717828245553,-559.58529775,0.00013898,2]
[328815319,1717828245564,-478.59948969,0.00013899,2]
[328815320,1717828245573,-202.95949156,0.000139,2]
[328815321,1717828245583,-150.0,0.000139,2]
[328815322,1717828245593,-340.46056738,0.000139,2]
[328815323,1717828245603,-150.0,0.00013997,2]
[328815324,1717828245613,-115.93248841,0.00013998,2]
[328815325,1717828245624,-176.53489944,0.00013998,2]
[328815326,1717828245633,-241.30909122,0.00013998,2]
[328815327,1717828245644,-193.56420238,0.00013998,2]
[328815328,1717828245656,-155.21468173,0.00013998,2]
[328815329,1717828245666,-229.35922986,0.00013998,2]
[328815330,1717828245676,-208.27486762,0.00013998,2]
[328815331,1717828245686,-263.45707997,0.00013998,2]
[328815332,1717828245696,-155.45078624,0.00013998,2]
[328815333,1717828245706,-271.53784341,0.00013998,2]
[328815334,1717828245716,-155.0,0.00013998,2]
[328815335,1717828245731,-157.18183373,0.00013998,2]
[328815336,1717828245742,-282.87152954,0.00013998,2]
[328815337,1717828245751,-307.42542569,0.00013998,2]
[328815338,1717828245761,-161.86047378,0.00013998,2]
[328815339,1717828245771,-155.40153651,0.00013998,2]
[328815340,1717828245781,-173.00995606,0.00013998,2]
[328815341,1717828245791,-156.17016932,0.00013998,2]
[328815342,1717828245803,-210.70788545,0.00013998,2]
[328815343,1717828245812,-155.37503968,0.00013998,2]
[328815344,1717828245822,-157.98831248,0.00013998,2]
[328815345,1717828245831,-189.35448094,0.00013998,2]
[328815346,1717828245842,-1381.93423711,0.00013998,2]
[328815347,1717828245852,-155.0,0.00013998,2]
[328815348,1717828245862,-195.02071198,0.00013998,2]
[328815349,1717828245873,-186.8085885,0.00013998,2]
[328815350,1717828245883,-1319.63724125,0.00013998,2]
[328815351,1717828245893,-156.10178131,0.00013998,2]
[328815352,1717828245902,-223.44815964,0.00013998,2]
[328815353,1717828245912,-211.24231993,0.00013998,2]
[328815354,1717828245922,-283.10014109,0.00013998,2]
[328815355,1717828245931,-156.15237966,0.00013998,2]
[328815356,1717828245941,-157.44296407,0.00013998,2]
[328815357,1717828245950,-306.91793765,0.00013998,2]
[328815358,1717828245960,-155.0,0.00013998,2]
[328815359,1717828245969,-156.68130869,0.00013998,2]
[328815360,1717828245979,-200.97845383,0.00013998,2]
[328815361,1717828245989,-155.89729398,0.00013998,2]
[328815363,1717828245999,-325.16380527,0.00013998,2]
[328815364,1717828246009,-155.54684316,0.00013998,2]
[328815365,1717828246018,-664.4436507,0.00013998,2]
[328815366,1717828246027,-157.47766349,0.00013998,2]
[328815367,1717828246037,-156.12777516,0.00013998,2]
[328815368,1717828246047,-200.37180645,0.00013998,2]
[328815369,1717828246057,-284.11394358,0.00013998,2]
[328815370,1717828246068,-156.29787113,0.00013998,2]
[328815371,1717828246078,-263.26519163,0.00013998,2]
[328815372,1717828246087,-1067.04191087,0.00013998,2]
[328815373,1717828246097,-410.97295669,0.00013998,2]
[328815374,1717828246106,-176.37129,0.00013998,2]
[328815375,1717828246116,-437.16722448,0.00013998,2]
[328815376,1717828246125,-530.12871842,0.00013998,2]
[328815377,1717828246134,-162.09900129,0.00013998,2]
[328815378,1717828246143,-243.40360597,0.00013998,2]
[328815379,1717828246153,-160.63341957,0.00013998,2]
[328815380,1717828246162,-203.89550413,0.00013998,2]
[328815381,1717828246171,-338.8029497,0.00013998,2]
[328815382,1717828246181,-1216.77565184,0.00013998,2]
[328815383,1717828246190,-448.31722883,0.00013998,2]
[328815384,1717828246200,-307.17591526,0.00013998,2]
[328815385,1717828246209,-295.74637207,0.00013998,2]
[328815386,1717828246219,-296.19788287,0.00013998,2]
[328815387,1717828246228,-201.51061122,0.00013999,2]
[328815388,1717828246237,-7428.01594166,0.00013999,2]
[328815389,1717828246367,-2576.56892141,0.00013999,2]
[328815390,1717828246378,-1512.05591026,0.00013999,2]
[328815391,1717828246390,-10502.58299993,0.00013999,2]
[328815392,1717828246402,-1034.28495539,0.00013999,2]
[328815393,1717828246412,-4621.84,0.00013999,2]
[328815394,1717828246422,-499.99,0.00013999,2]
[328815395,1717828246432,-150.0,0.00013999,2]
[328815397,1717828246442,-491644.5271209,0.00014,2]
[328815399,1717828246462,-3465.7968536,0.00014,2]
[328815400,1717828246474,-1376.75454,0.00014,2]
[328815402,1717828247026,-1912.9668,0.00014,2]
[328815420,1717828892704,-3312.318855,0.000308,30]
[328815421,1717828892738,-1200.0,0.00031,32]
[328815422,1717829104058,572.62909829,0.00013998,7]
[328815423,1717829225248,-1000.0,0.00012851,2]
[328815424,1717829225272,-250.0,0.00012852,2]
[328815425,1717829225294,-1588.5224047,0.00013101,2]
[328815426,1717829254375,-1600.0,0.000137,5]
[328815427,1717829254407,-300.0,0.000138,5]
[328815428,1717829254437,-300.0,0.000139,5]
[328815429,1717829265255,-300.0,0.000133,4]
[328815430,1717829265285,-600.0,0.000134,4]
[328815431,1717829265314,-900.0,0.000135,4]
[328815432,1717829265343,-1200.0,0.000136,4]
[328815433,1717829304850,526.88,0.00014904,4]
[328815434,1717829305173,528.71,0.0001589,5]
[328815435,1717829312868,-526.88,0.0001389,3]
[328815436,1717829312911,-690.48,0.0001399,3]
[328815438,1717829337254,-751.3,0.00010924,2]
[328815439,1717829337284,-169.7,0.00012842,2]
[328815440,1717829337315,-2140.96,0.00012847,2]
[328815441,1717829337345,-295.74637207,0.00012849,2]
[328815442,1717829337372,-295.74637207,0.00012849,2]
[328815443,1717829337400,-295.74637207,0.00012849,2]
[328815444,1717829337428,-295.74637207,0.00012849,2]
[328815445,1717829337456,-295.74637207,0.00012849,2]
[328815446,1717829348385,-7185.6609328,0.00013101,2]
[328815447,1717829348548,-9.66266147,0.00013101,2]
[328815449,1717829408500,150.0,0.00013999,7]
[328815450,1717829409424,150.0,0.00013999,7]
[328815451,1717829410382,150.0,0.00013999,7]
[328815452,1717829411319,150.0,0.00013999,7]
[328815453,1717829412295,150.0,0.00013999,7]
[328815461,1717829432986,-5950.30536575,0.00012846,2]
[328815462,1717829432996,-1795.39402106,0.00012847,2]
[328815463,1717829433005,-673.44816181,0.00012847,2]
[328815464,1717829433017,-784.9156,0.00012847,2]
[328815465,1717829433293,-337.03025925,0.00012847,2]
[328815467,1717829433303,-942.09246201,0.00012848,2]
[328815469,1717829433313,-1852.08,0.00012849,2]
[328815471,1717829433322,-186.94,0.00012945,2]
[328815473,1717829433332,-599.45580775,0.00013105,2]
[328815475,1717829433342,-186.94,0.0001317,2]
[328815477,1717829433352,-751.3,0.00013188,2]
[328815479,1717829433362,-313.67075431,0.00013298,2]
[328815481,1717829433371,-250.0,0.00013331,2]
[328815483,1717829433381,-4621.84,0.00013331,2]
[328815485,1717829433390,-499.99,0.00013331,2]
[328815487,1717829433400,-186.94,0.00013395,2]
[328815489,1717829433411,-186.94,0.0001362,2]
[328815491,1717829433420,-191.98,0.00013699,2]
[328815492,1717829433431,-200.0,0.00013699,2]
[328815493,1717829433441,-688.81,0.00013699,2]
[328815494,1717829433450,-155.58,0.00013752,2]
[328815495,1717829433459,-155.58,0.00013756,2]
[328815496,1717829433469,-155.58,0.0001376,2]
[328815497,1717829433479,-155.58,0.00013765,2]
[328815498,1717829433489,-155.58,0.00013769,2]
[328815499,1717829433499,-155.58,0.00013773,2]
[328815500,1717829433508,-155.58,0.00013777,2]
[328815501,1717829433518,-155.58,0.00013781,2]
[328815502,1717829433528,-155.58,0.00013785,2]
[328815503,1717829433538,-193.83670901,0.00013787,2]
[328815504,1717829433547,-155.58,0.00013789,2]
[328815505,1717829433557,-155.58,0.00013793,2]
[328815506,1717829433567,-155.58,0.00013797,2]
[328815507,1717829433576,-155.58,0.00013801,2]
[328815508,1717829433586,-155.58,0.00013805,2]
[328815509,1717829433596,-155.58,0.00013809,2]
[328815510,1717829433606,-155.58,0.00013813,2]
[328815511,1717829433617,-155.58,0.00013817,2]
[328815512,1717829433627,-155.58,0.00013821,2]
[328815513,1717829433637,-3000.0,0.0001386,2]
[328815514,1717829433647,-10105.038,0.000139,2]
[328815515,1717829433657,-1667.8545,0.000139,2]
[328815516,1717829433667,-158.44323915,0.000139,2]
[328815517,1717829433677,-329.38061444,0.000139,2]
[328815518,1717829433687,-760.1956901,0.000139,2]
[328815519,1717829433696,-226.97371158,0.000139,2]
[328815520,1717829433706,-1413.75176323,0.00013985,2]
[328815521,1717829433716,-6720.11786657,0.0001399,2]
[328815522,1717829433725,-1285.04899094,0.00013998,2]
[328815523,1717829433735,-2148.80553222,0.00013998,2]
[328815524,1717829433744,-155.36916986,0.00013998,2]
[328815525,1717829433753,-155.97244044,0.00013998,2]
[328815526,1717829433763,-455.70457802,0.00013998,2]
[328815527,1717829433773,-164.2826579,0.00013998,2]
[328815528,1717829433782,-560.58743162,0.00013998,2]
[328815529,1717829433792,-156.57298962,0.00013998,2]
[328815530,1717829433801,-530.52180049,0.00013998,2]
[328815531,1717829433811,-182.46062707,0.00013998,2]
[328815532,1717829433820,-957.37362739,0.00013998,2]
[328815533,1717829433830,-157.0308117,0.00013998,2]
[328815534,1717829433840,-456.28337919,0.00013998,2]
[328815535,1717829433849,-538.60151429,0.00013998,2]
[328815536,1717829433859,-178.47853186,0.00013998,2]
[328815537,1717829433869,-164.99574182,0.00013998,2]
[328815538,1717829433879,-315.24783645,0.00013998,2]
[328815539,1717829433889,-150.0,0.00013999,2]
[328815540,1717829433899,-58764.7742396,0.00014,2]
[328815541,1717829433912,-1550.79300337,0.00014,2]
[328815550,1717829439217,-1166.85198811,0.000139,2]
[328815551,1717829439228,-8356.73801189,0.00014,2]
[328815552,1717829439241,-1068.89864221,0.00014,2]
[328815553,1717829439488,-2035.41039584,0.00014,2]
[328815576,1717829442871,-281.60536195,0.00014,2]
[328815577,1717829442883,-533581.12669901,0.00014,2]
[328815578,1717829442894,-80725.87573667,0.00014,2]
[328815579,1717829443749,-999.99502399,0.00014,2]
[328815667,1717829445778,-8389.88783433,0.00014,2]
[328815668,1717829445790,-1498.78409991,0.00014,2]
[328815669,1717829445989,-3773.43059027,0.00014,2]
[328815670,1717829446001,-7246.19477986,0.00014,2]
[328815671,1717829446064,-0.00763303,0.00014,2]
[328815672,1717829446076,-496916.3571209,0.00014,2]
[328815687,1717829447287,-0.00307855,0.00014,2]
[328815690,1717829447463,-2941.5530221,0.00014,2]
[328815691,1717829447495,-1741.28591948,0.00014,2]
[328815698,1717829449416,-260.0,0.00014,2]
[328815699,1717829545071,164.66,0.00011684,2]
[328815700,1717829607353,180.65370112,0.00011684,2]
[328815701,1717829625356,180.65370112,0.00011684,2]
[328815702,1717829647360,181.86283063,0.00011684,2]
[328815703,1717830097746,-3100.10909556,0.00012649,2]
[328815704,1717830097772,-604.0,0.0001265,2]
[328815705,1717830097796,-676.17,0.00012652,2]
[328815706,1717830097822,-885.82814768,0.00012744,2]
[328815707,1717830097845,-885.82814768,0.00012744,2]
[328815708,1717830097869,-885.82814768,0.00012744,2]
[328815709,1717830097893,-885.82814768,0.00012744,2]
[328815710,1717830097915,-885.82814768,0.00012744,2]
[328815711,1717830097940,-885.82814768,0.00012744,2]
[328815712,1717830097963,-398.3605,0.00012746,2]
[328815713,1717830097987,-1300.11,0.00013786,2]
[328815714,1717830098010,-441.84056785,0.00013899,2]
[328815715,1717830098032,-155.7789607,0.000139,2]
[328815716,1717830098055,-321.81605928,0.000139,2]
[328815717,1717830098079,-168.23602542,0.000139,2]
[328815718,1717830098101,-1029.5816,0.000139,2]
[328815719,1717830098124,-470.65663436,0.000139,2]
[328815720,1717830098147,-215.09336921,0.000139,2]
[328815721,1717830098170,-506.79712674,0.000139,2]
[328815722,1717830098194,-1020.99548957,0.000139,2]
[328815723,1717830098218,-158.07,0.0001399,2]
[328815724,1717830098240,-155.0,0.00013998,2]
[328815725,1717830098264,-156.63359836,0.00013998,2]
[328815726,1717830098428,-198.5140176,0.00013998,2]
[328815727,1717830098452,-156.17076229,0.00013998,2]
[328815728,1717830098476,-327.42148466,0.00013998,2]
[328815729,1717830098498,-322.26497204,0.00013998,2]
[328815730,1717830098522,-359.60277031,0.00013998,2]
[328815731,1717830098546,-156.08749594,0.00013998,2]
[328815732,1717830098569,-235.59464842,0.00013998,2]
[328815733,1717830098592,-155.0,0.00013998,2]
[328815734,1717830098614,-374.34572749,0.00013998,2]
[328815735,1717830098638,-366.04584119,0.00013998,2]
[328815736,1717830098662,-5284.55875445,0.00013998,2]
[328815737,1717830098684,-267.11741498,0.00013998,2]
[328815738,1717830098708,-329.5482378,0.00013998,2]
[328815739,1717830098730,-155.69990789,0.00013998,2]
[328815740,1717830098756,-494.03032614,0.00013998,2]
[328815741,1717830098779,-155.44951973,0.00013998,2]
[328815742,1717830098802,-1000.0,0.00013998,2]
[328815743,1717830098826,-1398.30218198,0.00013998,2]
[328815744,1717830098849,-220.77580096,0.00013998,2]
[328815745,1717830098871,-245.16078714,0.00013998,2]
[328815746,1717830098893,-547.20780204,0.00013998,2]
[328815747,1717830098917,-5579.5952359,0.00013999,2]
[328815748,1717830098957,-797.19561269,0.00013999,2]
[328815749,1717830098989,-192938.09278523,0.00014,2]
[328815750,1717830127769,164.66,0.0001154,2]
[328815753,1717830255939,1000.0,0.0001154,2]
[328815755,1717830326385,957.32584388,0.00010963,2]
[328815756,1717830344365,327.35864388,0.00010963,2]
[328815757,1717830347189,9635.65859207,0.0001154,2]
[328815758,1717830379924,9207.1666873,0.0001154,2]
[328815759,1717830517913,-3100.10909556,0.00011535,2]
[328815760,1717830517936,-295.74637207,0.00011536,2]
[328815761,1717830517960,-295.74637207,0.00011536,2]
[328815762,1717830517985,-19556.8676365,0.00011536,2]
[328815763,1717830521446,19556.8676365,0.00011536,2]
[328815764,1717830545446,19556.8676365,0.00011536,2]
[328815765,1717830547081,-792.8333127,0.0001154,2]
[328815766,1717830547105,-595.68145241,0.00011736,2]
[328815767,1717830552387,994.5220328,0.00010959,2]
[328815768,1717830563109,-46.67854759,0.00011736,2]
[328815769,1717830563130,-412.08406695,0.00012458,2]
[328815770,1717830570643,389.88239469,0.00011536,2]
[328815771,1717830579632,947.71950495,0.00011536,2]
[328815839,1717830632178,-41.17533768,0.00012458,2]
[328815842,1717830632188,-1210.56699968,0.00013436,2]
[328815845,1717830632198,-295.74637207,0.00013436,2]
[328815846,1717830632207,-3100.10909556,0.00013437,2]
[328815848,1717830632218,-627.06293186,0.00013438,2]
[328815850,1717830632227,-866.4,0.00013527,2]
[328815852,1717830632237,-1376.09,0.0001356,2]
[328815854,1717830632247,-344.4,0.00013699,2]
[328815856,1717830632257,-191.98,0.00013699,2]
[328815858,1717830632266,-250.0,0.0001372,2]
[328815860,1717830632275,-155.79,0.00013778,2]
[328815862,1717830632285,-566.56,0.00013796,2]
[328815865,1717830632294,-682.90013692,0.00013857,2]
[328815866,1717830632304,-921.99544255,0.000139,2]
[328815868,1717830632313,-1374.4668,0.000139,2]
[328815870,1717830632322,-1000.0,0.0001393,2]
[328815872,1717830632331,-1134.1259,0.0001393,2]
[328815874,1717830632341,-642.36,0.00014,2]
[328815876,1717830632350,-20166.83,0.00014,2]
[328815878,1717830632359,-20807.68817731,0.00014,2]
[328815903,1717830632589,-337.86475116,0.000139,2]
[328815905,1717830632600,-40869.5048555,0.00014,2]
[328815968,1717830640192,-2512.41091049,0.00014,2]
[328815969,1717830640416,-2166.42300098,0.00014,2]
[328815970,1717830640441,-7.0295277,0.00014,2]
[328815996,1717830641745,-899.55620952,0.00014,2]
[328815997,1717830641757,-517.56768381,0.00014,2]
[328815998,1717830641769,-369.04637691,0.00014,2]
[328815999,1717830641781,-3696.60155,0.00014,2]
[328816000,1717830641852,-44688.78622818,0.00014,2]
[328816005,1717830643070,-737.36000002,0.00014,2]
[328816006,1717830643217,-8903.49168296,0.00014,2]
[328816009,1717830643231,-692879.53235162,0.00014,2]
[328816011,1717830643243,-108370.42834926,0.00014,2]
[328816019,1717830643694,-0.12005583,0.00014,2]
[328816023,1717830643835,-22528.76340811,0.00014,2]
[328816025,1717830646159,-544.63180222,0.000139,2]
[328816026,1717830646168,-249.15175393,0.00013999,2]
[328816027,1717830646178,-115937.68005893,0.00014,2]
[328816028,1717830647436,-585.11235056,0.00014,2]
[328816029,1717830647687,-447.49206202,0.00013999,2]
[328816030,1717830647698,-678.10087383,0.00014,2]
[328816031,1717830647710,-13876.0,0.00014,2]
[328816032,1717830647721,-1049.4544,0.00014,2]
[328816033,1717830658880,-511.00429262,0.00012459,2]
[328816034,1717830658904,-345.22,0.0001399,3]
[328816035,1717830658928,-3100.10909556,0.00013999,2]
[328816036,1717830658957,-8043.66661182,0.00014,2]
[328816037,1717830661147,20260.85855017,0.00011536,2]
[328816039,1717831273178,3100.10909556,0.00010481,2]
[328816040,1717831355235,144222.89090444,0.00010481,2]
[328816045,1717831646080,-181.48,0.00010048,2]
[328816046,1717831646104,-3100.10909556,0.00010477,2]
[328816047,1717831646126,-404.27802441,0.00010478,2]
[328816048,1717831646148,-295.74637207,0.00010478,2]